Workbook

Sheet NOMBRE
A1: DATOS DEL ESTABLECIMIENTO | C1: CÓDIGOS
A2: NOMBRE DE COMUNA | I2: =IF(OR(NOMBRE!C2="",NOMBRE!D2="",NOMBRE!E2="",NOMBRE!F2="",NOMBRE!G2=""),"Falta Cód. Com.","") -> Falta Cód. Com. | AF2: =IF(I2>"",1,0) -> 1
A3: NOMBRE ESTABLECIMIENTO/ESTRATEGIA | I3: =IF(OR(NOMBRE!C3="",NOMBRE!D3="",NOMBRE!E3="",NOMBRE!F3="",NOMBRE!G3="",NOMBRE!H3=""),"Falta Cód. Est.","") -> Falta Cód. Est. | AF3: =IF(I3>"",1,0) -> 1
A4: TIPO DE ESTABLECIMIENTO/ESTRATEGIA | I4: =IF(OR(NOMBRE!B4=""),"Falta Tipo. Est.","") -> Falta Tipo. Est. | AF4: =IF(I4>"",1,0) -> 1
A5: DEPENDENCIA | I5: =IF(OR(NOMBRE!B5=""),"Falta Dependencia. Est.","") -> Falta Dependencia. Est. | AF5: =IF(I5>"",1,0) -> 1
A6: MES: | I6: =IF(OR(NOMBRE!C6="",NOMBRE!D6=""),"Falta Cód. Mes.","") -> Falta Cód. Mes. | AF6: =IF(I6>"",1,0) -> 1
A7: AÑO: | B7: 2017 | AF7: =SUM(AF2:AF6) -> 5
A9: Versión 1.0: DICIEMBRE 2017
A11: Director Servicio de Salud o Director Establecimiento | Z11: ENERO | AA11: Establecimiento de Mayor Complejidad (EMAYC) | AB11: SERVICIO DE SALUD
A12: Jefe de Estadisticas | Z12: FEBRERO | AA12: Establecimiento de Mediana Complejidad (EMEDC) | AB12: MUNICIPAL
Z13: MARZO | AA13: Establecimiento de Menor Complejidad (EMENC) | AB13: OTRA INSTITUCIÓN (Delegado)
A14: MINSAL - DEIS | Z14: ABRIL | AA14: Centros de Diagnóstico Terapéutico (CDT)
Z15: MAYO | AA15: Centro de Referencia de Salud (CRS)
Z16: JUNIO | AA16: Consultorio General Urbano (CGU)
B17: SERIE BS | Z17: JULIO | AA17: Consultorio General Urbano (CGU) - CESFAM
Z18: AGOSTO | AA18: Consultorio General Urbano(CGU) con SAPU/SUR/SAR
Z19: SEPTIEMBRE | AA19: Consultorio General Urbano (CGU) - CESFAM con SAPU/SAR
Z20: OCTUBRE | AA20: Consultorio General Rural (CGR)
Z21: NOVIEMBRE | AA21: Consultorio General Rural (CGR) - CESFAM
Z22: DICIEMBRE | AA22: Consultorio General Rural (CGR) con SAPU/SUR/SAR
AA23: Consultorio General Rural (CGR) - CESFAM con SAPU/SUR/SAR
AA24: Posta de Salud Rural (PSR)
AA25: Centro Comunitario de Salud Familiar (CECOF)
AA26: Consultorio de Salud Mental (COSAM)
AA27: Programa de Reparación y Atención Integral de Salud (PRAIS)
AA28: Centro de Atención Funcionarios (CAF)
AA29: Clínica Dental Móvil (CDM)
AA30: Dirección Servicio de Salud (DSS)
AA31: Servicio de Atención Primaria de Urgencia (SAPU)
AA32: Servicio de Atención Primaria de Urgencia Alta Resolución (SAR)
AA33: Laboratorio Clínico o Dental
AA34: Servicio de Atención Primaria de Urgencia Dental (SAPUDENT)
AA35: Centro de Rehabilitación (CR)
AA36: Hospital de Campaña

Sheet B
C1: TOTAL | D1: ACTIVIDADES | H1: INTERVENCIONES QUIRÚRGICAS | O1: INTERVENCIONES QUIRÚRGICAS MAYORES NO AMBULATORIAS ELECTIVAS | R1: INTERVENCIONES QUIRÚRGICAS MAYORES AMBULATORIAS ELECTIVA | U1: INTERVENCIONES QUIRÚRGICAS MAYORES AMBULATORIAS URGENCIA | X1: INTERVENCIONES QUIRÚRGICAS MAYORES NO AMBULATORIAS URGENCIA | AA1: PROCEDENCIA | AD1: PRODUCCION INTRA HOSPITAL | AG1: OPERATIVO | AH1: COMPRAS REALIZADAS | AJ1: VENTAS DE SERVICIOS | AK1: TRANSFERENCIA 2018 | AL1: TOTAL FACTURADO
A2: CODIGO | B2: GLOSA | D2: TOTAL BENEFI-CIARIOS | E2: BENEFICIARIOS | G2: NO BENEFI-CIARIOS | H2: TOTAL BENEFICIARIOS | I2: PRINCIPAL | L2: SECUNDARIA | R2: < 15 AÑOS | U2: < 15 AÑOS | X2: < 15 AÑOS
E3: MAI | F3: MLE | I3: MAI | J3: MLE | K3: NO BENEFI-CIARIO | L3: MAI | M3: MLE | N3: NO BENEFI-CIARIO | O3: TOTAL | P3: < 15 AÑOS | Q3: 15 AÑOS Y MÁS | R3: TOTAL | S3: < 15 AÑOS | T3: 15 AÑOS Y MÁS | U3: TOTAL | V3: < 15 AÑOS | W3: 15 AÑOS Y MÁS | X3: TOTAL | Y3: < 15 AÑOS | Z3: 15 AÑOS Y MÁS | AA3: ATENCION CERRADA | AB3: ATENCION ABIERTA | AC3: EMERGENCIA | AD3: POR HONO- RARIOS | AE3: POR CONVENIOS | AF3: POR CONSULTO- RES DE LLAMADA | AH3: AL SISTEMA | AI3: EXTRA-SISTEMA
B4: CONSULTAS Y ATENCION MEDICA
A5: 0101101 | B5: Consulta o control médico integral en atención primaria | C5: =SUM(D5+G5) -> 6 | D5: =SUM(E5:F5) -> 4 | E5: 2 | F5: 2 | G5: 2 | AK5: 4590 | AL5: =AK5*E5 -> 9180
A6: 0101102 | B6: Consulta o control médico integral en especialidades (Hosp. Mediana Complejidad) | C6: =SUM(D6+G6) -> 6 | D6: =SUM(E6:F6) -> 4 | E6: 2 | F6: 2 | G6: 2 | AK6: 5780 | AL6: 11560
A7: 0101103 | B7: Consulta médica integral en servicio de urgencia (Hosp. Alta Complejidad) | C7: 6 | D7: 4 | E7: 2 | F7: 2 | G7: 2 | AK7: 12390 | AL7: 24780
A8: 0101104 | B8: Consulta médica integral en C.R.S. | C8: 6 | D8: 4 | E8: 2 | F8: 2 | G8: 2 | AK8: 7400 | AL8: 14800
A9: 0101105 | B9: Consulta médica integral en servicio de urgencia (Hosp. Mediana Complejidad) | C9: 6 | D9: 4 | E9: 2 | F9: 2 | G9: 2 | AK9: 8120 | AL9: 16240
A10: 0101106 | B10: Asistencia de cardiólogo a cirugías no cardíacas | C10: 6 | D10: 4 | E10: 2 | F10: 2 | G10: 2 | AK10: 15530 | AL10: 31060
A11: 0101107 | B11: Atención médica del recién nacido | C11: 6 | D11: 4 | E11: 2 | F11: 2 | G11: 2 | AK11: 15530 | AL11: 31060
A12: 0101108 | B12: Consulta integral de especialidades en Cirugía, Ginecología y Obstetricia, Ortopedia y Traumatología (en CDT) | C12: 6 | D12: 4 | E12: 2 | F12: 2 | G12: 2 | AK12: 6260 | AL12: 12520
A13: 0101109 | B13: Consulta integral de especialidades en Urología, Otorrinolaringología, Medicina Fisica y Rehabilitación, Dermatología, Pediatría y Subespecialidades (en CDT) | C13: 6 | D13: 4 | E13: 2 | F13: 2 | G13: 2 | AK13: 7510 | AL13: 15020
A14: 0101110 | B14: Consulta integral de especialidades en Medicina Interna y Subespecialidades, Oftalmología, Neurología, Oncología (en CDT) | C14: 6 | D14: 4 | E14: 2 | F14: 2 | G14: 2 | AK14: 9310 | AL14: 18620
A15: 0101111 | B15: Consulta integral de especialidades en Cirugía, Ginecología y Obstetricia, Ortopedia y Traumatología (Hosp. Alta Complejidad) | C15: 6 | D15: 4 | E15: 2 | F15: 2 | G15: 2 | AK15: 6260 | AL15: 12520
A16: 0101112 | B16: Consulta integral de especialidades en Urología, Otorrinolaringología, Medicina Física y Rehabilitación, Dermatología, Pediatría y Subespecialidades (Hosp. Alta Complejidad) | C16: 6 | D16: 4 | E16: 2 | F16: 2 | G16: 2 | AK16: 7510 | AL16: 15020
A17: 0101113 | B17: Consulta integral de especialidades en Medicina Interna y Subespecialidades, Oftalmología, Neurología, Oncología (Hosp. Alta Complejidad) | C17: 6 | D17: 4 | E17: 2 | F17: 2 | G17: 2 | AK17: 9310 | AL17: 18620
B18: TOTAL ARANCEL MAI | C18: =SUM(C5:C17) -> 78 | D18: =SUM(D5:D17) -> 52 | E18: 26 | F18: 26 | G18: 26 | AA18: 0 | AB18: 0 | AC18: 0 | AD18: 0 | AE18: 0 | AF18: 0 | AG18: 0 | AH18: 0 | AI18: 0 | AJ18: 0 | AK18: 115500 | AL18: 231000
A19: 0101001 | B19: Consulta médica general | C19: =SUM(D19+G19) -> 0 | D19: =SUM(E19:F19) -> 0
B20: Consultas de urgencia en Hospitales de baja complejidad | C20: 0 | D20: 0
B21: Consultas de especialidad en hospitales de baja complejidad y establecimientos de APS | C21: 0 | D21: 0
B22: Otras consulta médica de especialidades | C22: 0 | D22: 0
B23: Consulta médica de especialidad en servicio de urgencia | C23: 0 | D23: 0
A24: 0101308 | B24: Consulta Médica de Especialidad en Obstetricia y Ginecología | C24: 0 | D24: 0
B25: TOTAL ARANCEL MLE Y NO ARANCELADO | C25: =SUM(C19:C24) -> 0 | D25: =SUM(D19:D24) -> 0 | E25: =SUM(E19:E24) -> 0 | F25: =SUM(F19:F24) -> 0 | G25: =SUM(G19:G24) -> 0 | AA25: =SUM(AA19:AA24) -> 0 | AB25: =SUM(AB19:AB24) -> 0 | AC25: 0 | AD25: 0 | AE25: 0 | AF25: 0 | AG25: 0 | AH25: 0 | AI25: 0 | AJ25: 0
B26: TOTAL PRODUCCION | C26: =SUM(C18,C25) -> 78 | D26: =SUM(D18,D25) -> 52 | E26: =SUM(E18,E25) -> 26 | F26: =SUM(F18,F25) -> 26 | G26: =SUM(G18,G25) -> 26 | AA26: =SUM(AA18,AA25) -> 0 | AB26: 0 | AC26: 0 | AD26: 0 | AE26: 0 | AF26: 0 | AG26: 0 | AH26: 0 | AI26: 0 | AJ26: 0 | AK26: =SUM(AK18,AK25) -> 115500 | AL26: 231000
B27: CONSULTAS POR OTROS PROFESIONALES DE LA SALUD
A28: 0102001 | B28: Consulta o control por enfermera, matrona o nutricionista | C28: 0 | D28: 0 | AK28: 1220 | AL28: =AK28*E28 -> 0
A29: 0102002 | B29: Control de salud niño con EDP por enfermera | C29: 0 | D29: 0 | AK29: 2090 | AL29: 0
A30: 0102003 | B30: Consulta o control por auxiliar de enfermería | C30: 0 | D30: 0 | AK30: 670 | AL30: 0
A31: 0102005 | B31: Consulta por fonoaudiólogo | C31: 0 | D31: 0 | AK31: 1660 | AL31: 0
A32: 0102006 | B32: Atención kinesiológica integral ambulatoria | C32: 0 | D32: 0 | AK32: 1340 | AL32: 0
A33: 0102007 | B33: Atención integral por terapeuta ocupacional | C33: 0 | D33: 0 | AK33: 1220 | AL33: 0
B34: TOTAL ARANCEL MAI | C34: =SUM(C28:C33) -> 0 | D34: =SUM(D28:D33) -> 0 | E34: =SUM(E28:E33) -> 0 | F34: =SUM(F28:F33) -> 0 | G34: =SUM(G28:G33) -> 0 | AA34: =SUM(AA28:AA33) -> 0 | AB34: 0 | AC34: 0 | AD34: 0 | AE34: 0 | AF34: 0 | AG34: 0 | AH34: 0 | AI34: 0 | AJ34: 0 | AK34: =SUM(AK28:AK33) -> 8200 | AL34: =SUM(AL28:AL33) -> 0
B35: Consulta por otros profesionales | C35: 0 | D35: 0
B36: Consultas/ Controles de Especialidades Odontológica | C36: 0 | D36: 0
B37: Consultas de morbilidad odontológica | C37: 0 | D37: 0
B38: Consultas de urgencia odontológica | C38: 0 | D38: 0
B39: TOTAL ARANCEL MLE Y NO ARANCELADO | C39: =SUM(C35:C38) -> 0 | D39: =SUM(D35:D38) -> 0 | E39: =SUM(E35:E38) -> 0 | F39: =SUM(F35:F38) -> 0 | G39: =SUM(G35:G38) -> 0 | AA39: =SUM(AA35:AA38) -> 0 | AB39: 0 | AC39: 0 | AD39: 0 | AE39: 0 | AF39: 0 | AG39: 0 | AH39: 0 | AI39: 0 | AJ39: 0
B40: TOTAL PRODUCCION | C40: =SUM(C34+C39) -> 0 | D40: =SUM(D34+D39) -> 0 | E40: =SUM(E34+E39) -> 0 | F40: =SUM(F34+F39) -> 0 | G40: =SUM(G34+G39) -> 0 | AA40: =SUM(AA34+AA39) -> 0 | AB40: 0 | AC40: 0 | AD40: 0 | AE40: 0 | AF40: 0 | AG40: 0 | AH40: 0 | AI40: 0 | AJ40: 0 | AK40: =SUM(AK34+AK39) -> 8200 | AL40: =SUM(AL34+AL39) -> 0
B41: EDUCACION DE GRUPO
A42: 0103001 | B42: Educación de grupo por médico | C42: 0 | D42: 0 | AK42: 4010 | AL42: =AK42*E42 -> 0
A43: 0103002 | B43: Educación de grupo por enfermera, matrona o nutricionista | C43: 0 | D43: 0 | AK43: 2200 | AL43: =AK43*E43 -> 0
A44: 0103003 | B44: Educación de grupo por asistente social | C44: 0 | D44: 0 | AK44: 2200 | AL44: =AK44*E44 -> 0
A45: 0103004 | B45: Educación de grupo por auxiliar de enfermería | C45: 0 | D45: 0 | AK45: 670 | AL45: =AK45*E45 -> 0
B46: TOTAL ARANCEL MAI | C46: =SUM(C42:C45) -> 0 | D46: =SUM(D42:D45) -> 0 | E46: =SUM(E42:E45) -> 0 | F46: =SUM(F42:F45) -> 0 | G46: =SUM(G42:G45) -> 0 | AA46: =SUM(AA42:AA45) -> 0 | AB46: 0 | AC46: 0 | AD46: 0 | AE46: 0 | AF46: 0 | AG46: 0 | AH46: 0 | AI46: 0 | AJ46: 0 | AK46: =SUM(AK42:AK45) -> 9080 | AL46: =SUM(AL42:AL45) -> 0
B47: Educación de grupo por otro integrante del equipo de salud | C47: 0 | D47: 0
B48: TOTAL ARANCEL MLE Y NO ARANCELADO | C48: =C47 -> 0 | D48: =D47 -> 0 | E48: =E47 -> 0 | F48: =F47 -> 0 | G48: =G47 -> 0 | AA48: =AA47 -> 0 | AB48: 0 | AC48: 0 | AD48: 0 | AE48: 0 | AF48: 0 | AG48: 0 | AH48: 0 | AI48: 0 | AJ48: 0
B49: TOTAL PRODUCCION | C49: =SUM(C46+C48) -> 0 | D49: =SUM(D46+D48) -> 0 | E49: =SUM(E46+E48) -> 0 | F49: =SUM(F46+F48) -> 0 | G49: =SUM(G46+G48) -> 0 | AA49: =SUM(AA46+AA48) -> 0 | AB49: 0 | AC49: 0 | AD49: 0 | AE49: 0 | AF49: 0 | AG49: 0 | AH49: 0 | AI49: 0 | AJ49: 0 | AK49: =SUM(AK46+AK48) -> 9080 | AL49: =SUM(AL46+AL48) -> 0
B50: VISITAS DOMICILIARIAS
A51: 0104001 | B51: Visita a domicilio por enfermera, matrona o nutricionista | C51: 0 | D51: 0 | AK51: 1910 | AL51: =AK51*E51 -> 0
A52: 0104002 | B52: Visita a domicilio por asistente social | C52: 0 | D52: 0 | AK52: 1910 | AL52: =AK52*E52 -> 0
A53: 0104003 | B53: Visita a domicilio por auxiliar de enfermería | C53: 0 | D53: 0 | AK53: 1100 | AL53: =AK53*E53 -> 0
B54: TOTAL ARANCEL MAI | C54: =SUM(C51:C53) -> 0 | D54: =SUM(D51:D53) -> 0 | E54: =SUM(E51:E53) -> 0 | F54: =SUM(F51:F53) -> 0 | G54: =SUM(G51:G53) -> 0 | AA54: =SUM(AA51:AA53) -> 0 | AB54: 0 | AC54: 0 | AD54: =SUM(AD51:AD53) -> 0 | AE54: 0 | AF54: 0 | AG54: 0 | AH54: 0 | AI54: 0 | AJ54: 0 | AK54: =SUM(AK51:AK53) -> 4920 | AL54: =SUM(AL51:AL53) -> 0
B55: Visita a domicilio por otro integrante del equipo de salud | C55: 0 | D55: 0
B56: Visita domiciaria por otro profesional y técnicos paramédico | C56: 0 | D56: 0
B57: TOTAL ARANCEL MLE Y NO ARANCELADO | C57: =SUM(C55:C56) -> 0 | D57: =SUM(D55:D56) -> 0 | E57: =SUM(E55:E56) -> 0 | F57: =SUM(F55:F56) -> 0 | G57: =SUM(G55:G56) -> 0 | AA57: =SUM(AA55:AA56) -> 0 | AB57: 0 | AC57: 0 | AD57: 0 | AE57: 0 | AF57: 0 | AG57: 0 | AH57: 0 | AI57: 0 | AJ57: 0
B58: TOTAL PRODUCCION | C58: =SUM(C54+C57) -> 0 | D58: =SUM(D54+D57) -> 0 | E58: =SUM(E54+E57) -> 0 | F58: =SUM(F54+F57) -> 0 | G58: =SUM(G54+G57) -> 0 | AA58: =SUM(AA54+AA57) -> 0 | AB58: 0 | AC58: 0 | AD58: 0 | AE58: 0 | AF58: 0 | AG58: 0 | AH58: 0 | AI58: 0 | AJ58: 0 | AK58: =SUM(AK54+AK57) -> 4920 | AL58: =SUM(AL54+AL57) -> 0
B59: VACUNACION Y DESPARASITACION
A60: 0105001 | B60: Vacunaciones (sólo considera administración) | C60: 0 | D60: 0 | AK60: 830 | AL60: =AK60*E60 -> 0
A61: 0105002 | B61: Desparasitación sarna (cada persona) | C61: 0 | D61: 0 | AK61: 100 | AL61: =AK61*E61 -> 0
A62: 0105003 | B62: Desparasitación pediculosis (cada persona) | C62: 0 | D62: 0 | AK62: 100 | AL62: =AK62*E62 -> 0
B63: TOTAL | C63: =SUM(C60:C62) -> 0 | D63: =SUM(D60:D62) -> 0 | E63: =SUM(E60:E62) -> 0 | F63: =SUM(F60:F62) -> 0 | G63: =SUM(G60:G62) -> 0 | AA63: =SUM(AA60:AA62) -> 0 | AB63: 0 | AC63: 0 | AD63: 0 | AE63: 0 | AF63: 0 | AG63: 0 | AH63: 0 | AI63: 0 | AJ63: 0 | AK63: =SUM(AK60:AK62) -> 1030 | AL63: =SUM(AL60:AL62) -> 0
B64: MISCELANEOS
A65: 0106002 | B65: Curación simple ambulatoria | C65: 0 | D65: 0 | AK65: 730 | AL65: =AK65*E65 -> 0
A66: 0106005 | B66: Autocontrol pacientes Diabetico insulino dependiente (D.I.D. mensual) | C66: 0 | D66: 0 | AK66: 16550 | AL66: =AK66*E66 -> 0
A67: 0106006 | B67: Oxigenoterapia domiciliaria (pacientes oxígeno dependientes) | C67: 0 | D67: 0 | AK67: 38010 | AL67: =AK67*E67 -> 0
A68: 0106004 | B68: Despacho de recetas a crónicos | C68: 0 | D68: 0 | AK68: 2200 | AL68: =AK68*E68 -> 0
A69: 0106001 | B69: Abreu | C69: 0 | D69: 0 | AK69: 1480 | AL69: =AK69*E69 -> 0
B70: TOTAL ARANCEL MAI | C70: =SUM(C65:C69) -> 0 | D70: =SUM(D65:D69) -> 0 | E70: =SUM(E65:E69) -> 0 | F70: =SUM(F65:F69) -> 0 | G70: =SUM(G65:G69) -> 0 | AA70: =SUM(AA65:AA69) -> 0 | AB70: 0 | AC70: 0 | AD70: 0 | AE70: 0 | AF70: 0 | AG70: 0 | AH70: 0 | AI70: 0 | AJ70: 0 | AK70: =SUM(AK65:AK68) -> 57490 | AL70: =SUM(AL65:AL68) -> 0
B71: Procedimientos de podología | C71: 0 | D71: 0
B72: TOTAL ARANCEL MLE Y NO ARANCELADO | C72: =C71 -> 0 | D72: =D71 -> 0 | E72: =E71 -> 0 | F72: =F71 -> 0 | G72: =G71 -> 0 | AA72: =AA71 -> 0 | AB72: 0 | AC72: 0 | AD72: 0 | AE72: 0 | AF72: 0 | AG72: 0 | AH72: 0 | AI72: 0 | AJ72: 0
B73: TOTAL PRODUCCION | C73: =SUM(C70+C72) -> 0 | D73: =SUM(D70+D72) -> 0 | E73: =SUM(E70+E72) -> 0 | F73: =SUM(F70+F72) -> 0 | G73: =SUM(G70+G72) -> 0 | AA73: =SUM(AA70+AA72) -> 0 | AB73: 0 | AC73: 0 | AD73: 0 | AE73: 0 | AF73: 0 | AG73: 0 | AH73: 0 | AI73: =SUM(AI70+AI72) -> 0 | AJ73: =SUM(AJ70+AJ72) -> 0 | AK73: =SUM(AK70+AK72) -> 57490 | AL73: =SUM(AL70+AL72) -> 0
B74: OTRAS MISCELANEOS
A75: 5099048 | B75: Hemoglucotest instantáneo | C75: =SUM(D75+G75) -> 0 | D75: =SUM(E75:F75) -> 0
A76: 5099008 | B76: Actividad Básica | C76: 0 | D76: 0
A77: 5099009 | B77: Actividad Terapeutica | C77: 0 | D77: 0
A78: 5099010 | B78: Evaluacion Actividad | C78: 0 | D78: 0
A79: 5099011 | B79: Evaluacion prevocacional | C79: 0 | D79: 0
A80: 5099063 | B80: Evaluación cognitiva | C80: 0 | D80: 0
A81: 5099064 | B81: Estimulación cognitiva | C81: 0 | D81: 0
A82: 5099111 | B82: Curacion avanzada de herida | C82: 0 | D82: 0
A83: 0102701 | B83: Evaluación Motriz Funcional | C83: 0 | D83: 0
A84: 0102702 | B84: Evaluación cognitiva-perceptual | C84: 0 | D84: 0
A85: 0102703 | B85: Evaluación independencia en actividades de la vida diaria | C85: 0 | D85: 0
A86: 0102704 | B86: Evaluación barreras arquitectónicas | C86: 0 | D86: 0
A87: 0102705 | B87: Evaluación puesto de trabajo | C87: 0 | D87: 0
A88: 0102706 | B88: Evaluación del desarrollo Psicomotor | C88: 0 | D88: 0
A89: 0102707 | B89: Reentrenamiento de las funciones cognitiva-perceptual | C89: 0 | D89: 0
A90: 0102708 | B90: Reentrenamiento de las actividades de la vida diaria | C90: 0 | D90: 0
A91: 0102709 | B91: Reentrenamiento laboral | C91: 0 | D91: 0
B92: Comité junta médica | C92: 0 | D92: 0
B93: Consultorías médicas de especialidades | C93: 0 | D93: 0
B94: Consultorías odontólogos | C94: 0 | D94: 0
B95: Consejerias Individual por profesional de salud | C95: 0 | D95: 0
B96: Consejerias Familiar por profesionales de salud | C96: 0 | D96: 0
B97: Instalación de clips en lesiones sangrantes | C97: 0 | D97: 0
B98: Instalación vendaje compresivo (Coban) | C98: 0 | D98: 0
B99: TOTAL | C99: =SUM(C75:C98) -> 0 | D99: =SUM(D75:D98) -> 0 | E99: =SUM(E75:E98) -> 0 | F99: =SUM(F75:F98) -> 0 | G99: =SUM(G75:G98) -> 0 | AA99: =SUM(AA75:AA98) -> 0 | AB99: 0 | AC99: 0 | AD99: 0 | AE99: 0 | AF99: 0 | AG99: 0 | AH99: 0 | AI99: 0 | AJ99: 0
B100: Trasplantes
B101: Estudio receptor donante cadáver | C101: 0 | D101: =SUM(E101:F101) -> 0
B102: Estudio receptor donante vivo | C102: 0 | D102: 0
B103: Estudio receptores corazón-pulmón | C103: 0 | D103: 0
B104: Estudio pacientes trasplante medula ósea | C104: 0 | D104: 0
B105: Trasplante de medula autólogo | C105: 0 | D105: 0
B106: Trasplante de medula alógeno | C106: 0 | D106: 0
B107: Trasplante medula de cordón | C107: 0 | D107: 0
B108: Trasplante medula aploidentico | C108: 0 | D108: 0
B109: Trasplante de córnea (incluye procuramiento y seguimiento por un año) | C109: 0 | D109: 0
B110: Soporte pretrasplante hepático extracorporeo por sesión | C110: 0 | D110: 0
B111: Mantención donante cadáver (pulmón, corazón o hígado) (muerte cerebral) | C111: 0 | D111: 0
B112: TOTAL | C112: =SUM(C101:C111) -> 0 | D112: =SUM(D101:D111) -> 0 | E112: =SUM(E101:E111) -> 0 | F112: =SUM(F101:F111) -> 0 | G112: =SUM(G101:G111) -> 0 | AA112: =SUM(AA101:AA111) -> 0 | AB112: =SUM(AB101:AB111) -> 0 | AC112: 0 | AD112: 0 | AE112: 0 | AF112: 0 | AG112: 0 | AH112: 0 | AI112: 0 | AJ112: 0
B113: ATENCION CERRADA
A114: 0203001 | B114: Día cama hospitalización integral medicina, cirugía, pediatría, obstetricia-ginecología y especialidades (sala 3 camas o más) (Hosp. Alta Complejidad) | C114: 0 | D114: =SUM(E114:F114) -> 0 | AK114: 36360 | AL114: =AK114*E114 -> 0
A115: 0203102 | B115: Día cama hospitalización integral medicina, cirugía, pediatría, obstetricia-ginecología y especialidades (sala 3 camas o más) (Hosp. Mediana Complejidad) | C115: 0 | D115: =SUM(E115:F115) -> 0 | AK115: 33480 | AL115: 0
A116: 0203103 | B116: Día cama hospitalización integral medicina, cirugía, pediatría, obstetricia-ginecología y especialidades (sala 3 camas o más) (Hosp. Baja Complejidad) | C116: 0 | D116: 0 | AK116: 27900 | AL116: 0
A117: 0203002 | B117: Día cama hospitalización integral adulto en Unidad de Cuidado Intensivo (U.C.I.) | C117: 0 | D117: 0 | AK117: 151180 | AL117: 0
A118: 0203003 | B118: Día cama hospitalización integral pediátrica en Unidad de Cuidado Intensivo (U.C.I). | C118: 0 | D118: 0 | AK118: 151180 | AL118: 0
A119: 0203004 | B119: Día cama hospitalización integral neonatal en Unidad de Cuidado Intensivo (U.C.I.) | C119: 0 | D119: 0 | AK119: 151180 | AL119: 0
A120: 0203005 | B120: Día cama hospitalización integral adulto en Unidad de Tratamiento Intermedio (U.T.I) | C120: 0 | D120: 0 | AK120: 73020 | AL120: 0
A121: 0203006 | B121: Día cama hospitalización integral pediátrica en Unidad de Tratamiento Intermedio (U.T.I) | C121: 0 | D121: 0 | AK121: 73020 | AL121: 0
A122: 0203007 | B122: Día cama hospitalización integral neonatal en Unidad de Tratamiento Intermedio (U.T.I) | C122: 0 | D122: 0 | AK122: 73020 | AL122: 0
A123: 0203008 | B123: Día cama hospitalización integral incubadora | C123: 0 | D123: 0 | AK123: 65510 | AL123: 0
A124: 0203009 | B124: Día cama hospitalización integral psiquiatría crónicos | C124: 0 | D124: 0 | AK124: 18590 | AL124: 0
A125: 0203109 | B125: Día cama hosp. integral psiquiatría corta estadía | C125: 0 | D125: 0 | AK125: 29130 | AL125: 0
A126: 0203209 | B126: Día cama hosp. integral desintoxicación alcohol y drogas | C126: 0 | D126: 0 | AK126: 30320 | AL126: 0
B127: TOTAL | C127: =SUM(C114:C126) -> 0 | D127: =SUM(D114:D126) -> 0 | E127: =SUM(E114:E126) -> 0 | F127: =SUM(F114:F126) -> 0 | G127: =SUM(G114:G126) -> 0 | AA127: =SUM(AA114:AA126) -> 0 | AB127: =SUM(AB114:AB126) -> 0 | AC127: 0 | AD127: 0 | AE127: 0 | AF127: 0 | AG127: 0 | AH127: 0 | AI127: 0 | AJ127: 0 | AK127: 913890 | AL127: 0
B128: MISCELANEOS DIA CAMA
A129: 0203010 | B129: Día cama integral psiquiátrico diurno | C129: 0 | D129: =SUM(E129:F129) -> 0 | AK129: 12220 | AL129: =AK129*E129 -> 0
A130: 0203110 | B130: Día cama hospitalización integral psiquiatría mediana estadía | C130: 0 | D130: 0 | AK130: 29370 | AL130: 0
A131: 0203011 | B131: Día cama integral de observación o día cama integral ambulatorio diurno | C131: 0 | D131: 0 | AK131: 12220 | AL131: 0
A132: 0203111 | B132: Camilla de observación en servicio de urgencia | C132: 0 | D132: 0 | AK132: 5390 | AL132: 0
A133: 0203012 | B133: Día cama integral geriatría o crónicos | C133: 0 | D133: 0 | AK133: 36360 | AL133: 0
A134: 0203013 | B134: Día estada en cámara hiperbárica | C134: 0 | D134: 0 | AK134: 98300 | AL134: 0
A135: 0203014 | B135: Día cama hogar embarazada rural (del Servicio de Salud) | C135: 0 | D135: 0 | AK135: 11610 | AL135: 0
A136: 0203015 | B136: Día cuna de hospitalización integral | C136: 0 | D136: 0 | AK136: 7060 | AL136: 0
A137: 0203016 | B137: Día cama hospitalización integral urgencia H.U.A.P. (Sólo Hospital Urgencia Asistencia Pública) | C137: 0 | D137: 0 | AK137: 50960 | AL137: 0
A138: 0203017 | B138: Día cama hogar protegido paciente psiquiátrico compensado | C138: 0 | D138: 0 | AK138: 8940 | AL138: 0
B139: TOTAL ARANCEL MAI | C139: =SUM(C129:C138) -> 0 | D139: =SUM(D129:D138) -> 0 | E139: =SUM(E129:E138) -> 0 | F139: =SUM(F129:F138) -> 0 | G139: =SUM(G129:G138) -> 0 | AA139: =SUM(AA129:AA138) -> 0 | AB139: =SUM(AB129:AB138) -> 0 | AC139: 0 | AD139: 0 | AE139: 0 | AF139: 0 | AG139: 0 | AH139: 0 | AI139: 0 | AJ139: 0 | AK139: 272430 | AL139: 0
A140: "0203211 | B140: Día Cama Residencia Protegida | C140: =SUM(D140+G140) -> 0 | D140: =SUM(E140:F140) -> 0
A141: "0202101 | B141: Día Cama de Hospitalización Medicina y Especialidades (sala 3 camas o más de pensionado o medio pensionado). | C141: =SUM(D141+G141) -> 0 | D141: =SUM(E141:F141) -> 0
A142: 0202105 | B142: Día Cama de Hospitalización Cirugía (sala 3 camas o más de pensionado o medio pensionado) | C142: 0 | D142: 0
A143: 0202109 | B143: Día Cama de Hospitalización Pediatría (sala 3 camas o más de pensionado o medio pensionado) | C143: 0 | D143: 0
A144: 0202113 | B144: Día Cama de Hospitalización Obstetricia y Ginecología (sala 3 camas o más de pensionado o medio pensionado) | C144: 0 | D144: 0
B145: TOTAL ARANCEL MLE Y NO ARANCELADO | C145: =SUM(C140:C144) -> 0 | D145: =SUM(D140:D144) -> 0 | E145: 0 | F145: 0 | G145: 0 | AA145: =AA140 -> 0 | AB145: 0 | AC145: 0 | AD145: 0 | AE145: 0 | AF145: 0 | AG145: 0 | AH145: 0 | AI145: 0 | AJ145: 0
B146: TOTAL PRODUCCION | C146: =SUM(C139+C145) -> 0 | D146: =SUM(D139+D145) -> 0 | E146: =SUM(E139+E145) -> 0 | F146: =SUM(F139+F145) -> 0 | G146: =SUM(G139+G145) -> 0 | AA146: =SUM(AA139+AA145) -> 0 | AB146: 0 | AC146: 0 | AD146: 0 | AE146: 0 | AF146: 0 | AG146: 0 | AH146: 0 | AI146: 0 | AJ146: 0 | AK146: =SUM(AK139+AK145) -> 272430 | AL146: =SUM(AL139+AL145) -> 0
B147: EXAMENES DE LABORATORIO
B148: I.- SANGRE, HEMATOLOGIA
A149: 0301002 | B149: Acido fólico o folatos | C149: 6 | D149: =SUM(E149:F149) -> 4 | E149: 2 | F149: 2 | G149: 2 | AK149: 3860 | AL149: =AK149*E149 -> 7720
A150: 0301003 | B150: Adenograma, mielograma, c/u | C150: =SUM(D150+G150) -> 6 | D150: =SUM(E150:F150) -> 4 | E150: 2 | F150: 2 | G150: 2 | AK150: 4800 | AL150: 9600
A151: 0301005 | B151: Aglutininas anti Rho | C151: 6 | D151: 4 | E151: 2 | F151: 2 | G151: 2 | AK151: 3440 | AL151: 6880
A152: 0301006 | B152: Agregación plaquetaria con diferentes agonistas | C152: 6 | D152: 4 | E152: 2 | F152: 2 | G152: 2 | AK152: 3440 | AL152: 6880
A153: 0301007 | B153: Anticoagulantes circulantes o anticoagulante lúpico | C153: 6 | D153: 4 | E153: 2 | F153: 2 | G153: 2 | AK153: 3440 | AL153: 6880
A154: 0301008 | B154: Antitrombina III | C154: 6 | D154: 4 | E154: 2 | F154: 2 | G154: 2 | AK154: 3440 | AL154: 6880
A155: 0301011 | B155: Coagulación, tiempo de | C155: 6 | D155: 4 | E155: 2 | F155: 2 | G155: 2 | AK155: 1190 | AL155: 2380
A156: 0301013 | B156: Tiempo de lisis del coágulo | C156: 6 | D156: 4 | E156: 2 | F156: 2 | G156: 2 | AK156: 460 | AL156: 920
A157: 0301014 | B157: Prueba de antiglobulina directa | C157: 6 | D157: 4 | E157: 2 | F157: 2 | G157: 2 | AK157: 940 | AL157: 1880
A158: 0301015 | B158: Coombs indirecto, prueba de | C158: 6 | D158: 4 | E158: 2 | F158: 2 | G158: 2 | AK158: 1720 | AL158: 3440
A159: 0301017 | B159: Deshidrogenasa glucosa-6-fosfato en eritrocitos | C159: 6 | D159: 4 | E159: 2 | F159: 2 | G159: 2 | AK159: 3610 | AL159: 7220
A160: 0301020 | B160: Tiempo de lisis de euglobulinas | C160: 6 | D160: 4 | E160: 2 | F160: 2 | G160: 2 | AK160: 1190 | AL160: 2380
A161: 0301021 | B161: Fibrinógeno | C161: 6 | D161: 4 | E161: 2 | F161: 2 | G161: 2 | AK161: 1720 | AL161: 3440
A162: 0301022 | B162: Test de neutralización plaquetaria | C162: 6 | D162: 4 | E162: 2 | F162: 2 | G162: 2 | AK162: 3440 | AL162: 6880
A163: 0301024 | B163: Factor V | C163: 6 | D163: 4 | E163: 2 | F163: 2 | G163: 2 | AK163: 1720 | AL163: 3440
A164: 0301025 | B164: Factores VII, VIII, IX, X, XI, XII, XIII, c/u | C164: 6 | D164: 4 | E164: 2 | F164: 2 | G164: 2 | AK164: 3610 | AL164: 7220
A165: 0301026 | B165: Ferritina | C165: 6 | D165: 4 | E165: 2 | F165: 2 | G165: 2 | AK165: 4390 | AL165: 8780
A166: 0301027 | B166: Fibrinógeno, productos de degradación del | C166: 6 | D166: 4 | E166: 2 | F166: 2 | G166: 2 | AK166: 3610 | AL166: 7220
A167: 0301028 | B167: Fierro sérico | C167: 6 | D167: 4 | E167: 2 | F167: 2 | G167: 2 | AK167: 1720 | AL167: 3440
A168: 0301029 | B168: Fierro, capacidad de fijación del (incluye fierro sérico) | C168: 6 | D168: 4 | E168: 2 | F168: 2 | G168: 2 | AK168: 3610 | AL168: 7220
A169: 0301030 | B169: Fierro, cinética del (cada determinación) | C169: 6 | D169: 4 | E169: 2 | F169: 2 | G169: 2 | AK169: 4390 | AL169: 8780
A170: 0301033 | B170: Grupos menores. Tipificación o determinación de otros sistemas sanguíneos (Kell, Duffy, Kidd y otros) c/u. | C170: 6 | D170: 4 | E170: 2 | F170: 2 | G170: 2 | AK170: 2120 | AL170: 4240
A171: 0301034 | B171: Clasificación sanguínea AB0 y RhD | C171: 6 | D171: 4 | E171: 2 | F171: 2 | G171: 2 | AK171: 1950 | AL171: 3900
A172: 0301035 | B172: Haptoglobina cuantitativa | C172: 6 | D172: 4 | E172: 2 | F172: 2 | G172: 2 | AK172: 3250 | AL172: 6500
A173: 0301036 | B173: Hematocrito (proc. aut.) | C173: 6 | D173: 4 | E173: 2 | F173: 2 | G173: 2 | AK173: 540 | AL173: 1080
A174: 0301038 | B174: Hemoglobina en sangre total (proc. aut.) | C174: 6 | D174: 4 | E174: 2 | F174: 2 | G174: 2 | AK174: 540 | AL174: 1080
A175: 0301039 | B175: Hemoglobina fetal cualitativa | C175: 6 | D175: 4 | E175: 2 | F175: 2 | G175: 2 | AK175: 540 | AL175: 1080
A176: 0301040 | B176: Hemoglobina fetal cuantitativa en eritrocitos | C176: 6 | D176: 4 | E176: 2 | F176: 2 | G176: 2 | AK176: 3610 | AL176: 7220
A177: 0301041 | B177: Hemoglobina glicada A1c | C177: 0 | D177: 0 | AK177: 3750 | AL177: 0
A178: 0301042 | B178: Hemoglobina plasmática | C178: 0 | D178: 0 | AK178: 730 | AL178: 0
A179: 0301044 | B179: Electroforesis de hemoglobina | C179: 0 | D179: 0 | AK179: 3860 | AL179: 0
A180: 0301045 | B180: Hemograma (incluye recuentos de leucocitos y eritrocitos, hemoglobina, hematocrito, fórmula leucocitaria, características de los elementos figurados y velocidad de eritrosedimentación) | C180: 0 | D180: 0 | AK180: 2470 | AL180: 0
A181: 0301048 | B181: Hemosiderina medular | C181: 0 | D181: 0 | AK181: 730 | AL181: =AK181*E181 -> 0
A182: 0301049 | B182: Cuantificación de heparina | C182: 0 | D182: 0 | AK182: 3610 | AL182: 0
A183: 0301050 | B183: Isoinmunización, detección de anticuerpos irregulares (proc. aut.). | C183: 0 | D183: 0 | AK183: 2650 | AL183: 0
A184: 0301051 | B184: Identificación de anticuerpos irregulares eritrocitarios | C184: 0 | D184: 0 | AK184: 3610 | AL184: 0
A185: 0301054 | B185: Metahemoglobina | C185: 0 | D185: 0 | AK185: 940 | AL185: 0
A186: 0301059 | B186: Tiempo de protrombina (incluye INR, Razón Internacional Normalizada) | C186: 0 | D186: 0 | AK186: 1190 | AL186: 0
A187: 0301062 | B187: Recuento de basófilos (absoluto) | C187: 0 | D187: 0 | AK187: 730 | AL187: 0
A188: 0301063 | B188: Recuento de eosinófilos (absoluto) | C188: 0 | D188: 0 | AK188: 730 | AL188: 0
A189: 0301064 | B189: Recuento de eritrocitos, absoluto (proc. aut.) | C189: 0 | D189: 0 | AK189: 540 | AL189: 0
A190: 0301065 | B190: Recuento de leucocitos, absoluto (proc. aut.) | C190: 0 | D190: 0 | AK190: 540 | AL190: 0
A191: 0301066 | B191: Recuento de linfocitos (absoluto) | C191: 0 | D191: 0 | AK191: 940 | AL191: 0
A192: 0301067 | B192: Recuento de plaquetas (absoluto) | C192: 0 | D192: 0 | AK192: 940 | AL192: 0
A193: 0301068 | B193: Recuento de reticulocitos (absoluto o porcentual) | C193: 0 | D193: 0 | AK193: 730 | AL193: 0
A194: 0301069 | B194: Recuento diferencial o fórmula leucocitaria (proc. aut.) | C194: =SUM(D194+G194) -> 0 | D194: =SUM(E194:F194) -> 0 | AK194: 1470 | AL194: 0
A195: 0301070 | B195: Resistencia globular osmótica | C195: 0 | D195: 0 | AK195: 2420 | AL195: 0
A196: 0301072 | B196: Tiempo de sangria (no incluye dispositivo asociado) | C196: 0 | D196: 0 | AK196: 1190 | AL196: 0
A197: 0301075 | B197: Subgrupo ABO y Rh fenotipo - genotipo Rh, c/u | C197: 0 | D197: 0 | AK197: 2120 | AL197: 0
A198: 0301082 | B198: Transferrina | C198: 0 | D198: 0 | AK198: 4270 | AL198: 0
A199: 0301083 | B199: Trombina, tiempo de | C199: 0 | D199: 0 | AK199: 1470 | AL199: 0
A200: 0301085 | B200: Tromboplastina, tiempo parcial de (TTPA, TTPK o similares) | C200: 0 | D200: 0 | AK200: 1880 | AL200: 0
... 2743 more rows

Sheet B17
A1: SERVICIO DE SALUD / ESTABLECIMIENTO MUNICIPAL
A2: =CONCATENATE("COMUNA: ",NOMBRE!B2," - ","( ",NOMBRE!C2,NOMBRE!D2,NOMBRE!E2,NOMBRE!F2,NOMBRE!G2," )") -> COMUNA: - ( )
A3: =CONCATENATE("ESTABLECIMIENTO/ESTRATEGIA: ",NOMBRE!B3," - ","( ",NOMBRE!C3,NOMBRE!D3,NOMBRE!E3,NOMBRE!F3,NOMBRE!G3,NOMBRE!H3," )") -> ESTABLECIMIENTO/ESTRATEGIA: - ( )
A4: =CONCATENATE("MES: ",NOMBRE!B6," - ","( ",NOMBRE!C6,NOMBRE!D6," )") -> MES: - ( )
A5: =CONCATENATE("AÑO: ",NOMBRE!B7) -> AÑO: 2017
D6: REM-B17. ACTIVIDADES DE APOYO DIAGNOSTICO y TERAPEUTICO
A7: PARTE I
A8: SECCION A: ATENCIONES ABIERTAS
A9: CODIGOS | B9: IDENTIFICACION DE PRESTACIONES | C9: TOTAL PRODUCCIÓN | D9: TOTAL BENEFICIARIOS MAI | E9: PAGO POR PRESTACIONES ($)
B10: CONSULTAS Y ATENCION MEDICA | C10: =SUM(C11:C23) -> 78 | D10: =SUM(D11:D23) -> 26 | E10: =SUM(E11:E23) -> 231000
A11: 0101101 | B11: Consulta o control médico integral en atención primaria | C11: =B!C5 -> 6 | D11: =B!E5 -> 2 | E11: =B!AL5 -> 9180
A12: 0101102 | B12: Consulta o control médico integral en especialidades (Hosp. Mediana Complejidad) | C12: =B!C6 -> 6 | D12: =B!E6 -> 2 | E12: =B!AL6 -> 11560
A13: 0101103 | B13: Consulta médica integral en servicio de urgencia (Hosp. Alta Complejidad) | C13: =B!C7 -> 6 | D13: =B!E7 -> 2 | E13: =B!AL7 -> 24780
A14: 0101104 | B14: Consulta médica integral en C.R.S. | C14: =B!C8 -> 6 | D14: =B!E8 -> 2 | E14: =B!AL8 -> 14800
A15: 0101105 | B15: Consulta médica integral en servicio de urgencia (Hosp. Mediana Complejidad) | C15: =B!C9 -> 6 | D15: =B!E9 -> 2 | E15: =B!AL9 -> 16240
A16: 0101106 | B16: Asistencia de cardiólogo a cirugías no cardíacas | C16: =B!C10 -> 6 | D16: =B!E10 -> 2 | E16: =B!AL10 -> 31060
A17: 0101107 | B17: Atención médica del recién nacido | C17: =B!C11 -> 6 | D17: =B!E11 -> 2 | E17: =B!AL11 -> 31060
A18: 0101108 | B18: Consulta integral de especialidades en Cirugía, Ginecología y Obstetricia, Ortopedia y Traumatología (en CDT) | C18: =B!C12 -> 6 | D18: =B!E12 -> 2 | E18: =B!AL12 -> 12520
A19: 0101109 | B19: Consulta integral de especialidades en Urología, Otorrinolaringología, Medicina Fisica y Rehabilitación, Dermatología, Pediatría y Subespecialidades (en CDT) | C19: =B!C13 -> 6 | D19: =B!E13 -> 2 | E19: =B!AL13 -> 15020
A20: 0101110 | B20: Consulta integral de especialidades en Medicina Interna y Subespecialidades, Oftalmología, Neurología, Oncología (en CDT) | C20: =B!C14 -> 6 | D20: =B!E14 -> 2 | E20: =B!AL14 -> 18620
A21: 0101111 | B21: Consulta integral de especialidades en Cirugía, Ginecología y Obstetricia, Ortopedia y Traumatología (Hosp. Alta Complejidad) | C21: =B!C15 -> 6 | D21: =B!E15 -> 2 | E21: =B!AL15 -> 12520
A22: 0101112 | B22: Consulta integral de especialidades en Urología, Otorrinolaringología, Medicina Física y Rehabilitación, Dermatología, Pediatría y Subespecialidades (Hosp. Alta Complejidad) | C22: =B!C16 -> 6 | D22: =B!E16 -> 2 | E22: =B!AL16 -> 15020
A23: 0101113 | B23: Consulta integral de especialidades en Medicina Interna y Subespecialidades, Oftalmología, Neurología, Oncología (Hosp. Alta Complejidad) | C23: =B!C17 -> 6 | D23: =B!E17 -> 2 | E23: =B!AL17 -> 18620
A24: 0903006 | B24: Consultoría de salud mental por psiquiatra (sesión 4 hrs.) (mínimo 8 pacientes) | C24: =B!C987 -> 0 | D24: =B!E987 -> 0 | E24: =B!AL987 -> 0
B25: OTRAS CONSULTAS Y ATENCION MEDICA | C25: =SUM(C26:C31) -> 0
A26: 0101001 | B26: Consulta médica general | C26: =VLOOKUP(B26,tabla2,3,FALSE) -> 0
B27: Consultas de urgencia en Hospitales de baja complejidad | C27: =VLOOKUP(B27,tabla2,3,FALSE) -> 0
B28: Consultas de especialidad en hospitales de baja complejidad y establecimientos de APS | C28: =VLOOKUP(B28,tabla2,3,FALSE) -> 0
B29: Otras consulta médica de especialidades | C29: =VLOOKUP(B29,tabla2,3,FALSE) -> 0
B30: Consulta médica de especialidad en servicio de urgencia | C30: =B!C23 -> 0
A31: 101308 | B31: Consulta Médica de Especialidad en Obstetricia y Ginecología | C31: =B!C24 -> 0
B32: CONSULTAS POR OTROS PROFESIONALES DE LA SALUD | C32: =SUM(C33:C46) -> 0
A33: 0102001 | B33: Consulta o control por enfermera, matrona o nutricionista | C33: =B!$C$28 -> 0 | D33: =B!$E$28 -> 0 | E33: =B!$AL$28 -> 0
A34: 0102002 | B34: Control de salud niño con EDP por enfermera | C34: =B!$C$29 -> 0 | D34: =B!$E$29 -> 0 | E34: =B!$AL$29 -> 0
A35: 0102003 | B35: Consulta o control por auxiliar de enfermería | C35: =B!$C$30 -> 0 | D35: =B!$E$30 -> 0 | E35: =B!$AL$30 -> 0
A36: 0102005 | B36: Consulta por fonoaudiólogo | C36: =B!$C$31 -> 0 | D36: =B!$E$31 -> 0 | E36: =B!$AL$31 -> 0
A37: 0102006 | B37: Atención kinesiológica integral ambulatoria | C37: =B!$C$32 -> 0 | D37: =B!$E$32 -> 0 | E37: =B!$AL$32 -> 0
A38: 0102007 | B38: Atención integral por terapeuta ocupacional | C38: =B!$C$33 -> 0 | D38: =B!$E$33 -> 0 | E38: =B!$AL$33 -> 0
A39: 0903002 | B39: Consulta o control psicológico clínico | C39: =B!$C$983 -> 0 | D39: =B!$E$983 -> 0 | E39: =B!$AL$983 -> 0
A40: 0903003 | B40: Consulta de salud mental por otros profesionales | C40: =B!$C$984 -> 0 | D40: =B!$E$984 -> 0 | E40: =B!$AL$984 -> 0
A41: 0903004 | B41: Intervención psicosocial grupal (4 a 8 pacientes, familiares o cuidadores) | C41: =B!$C$985 -> 0 | D41: =B!$E$985 -> 0 | E41: =B!$AL$985 -> 0
A42: 0903005 | B42: Psicoterapia de grupo (por psicólogo o psiquiatra) (4 a 8 pacientes) | C42: =B!$C$986 -> 0 | D42: =B!$E$986 -> 0 | E42: =B!$AL$986 -> 0
A43: 0903001 | B43: Consulta de psiquiatría | C43: =B!$C$982 -> 0 | D43: =B!$E$982 -> 0 | E43: =B!$AL$982 -> 0
A44: 0901009 | B44: Evaluación psiquiátrica previa a terapia (1ra. consulta). | C44: =B!C991 -> 0
A45: 0902001 | B45: Consulta Psicólogo clínico (sesiones 45') | C45: =B!C992 -> 0
A46: 0901005 | B46: Atención psiquiátrica o psicoterapia de familia, individual, de relajación o de manejo (con familia u otros);(cada sesión mínimo 45') | C46: =B!C993 -> 0
B47: OTRAS CONSULTAS Y ATENCION MEDICA | C47: =SUM(C48:C51) -> 0
B48: Consulta por otros profesionales | C48: =B!$C$35 -> 0
B49: Consultas/ Controles de Especialidades Odontológica | C49: =B!$C$36 -> 0
B50: Consultas de morbilidad odontológica | C50: =B!$C$37 -> 0
B51: Consultas de urgencia odontológica | C51: =B!$C$38 -> 0
B52: PROGRAMAS DE REHABILITACION | C52: =SUM(C53:C54) -> 0 | D52: =SUM(D53:D54) -> 0 | E52: =SUM(E53:E54) -> 0
A53: 0903007 | B53: Programa de rehabilitación tipo 1 (mensual, grupo 6 a 10 pers.) | C53: =B!$C$988 -> 0 | D53: =B!$E$988 -> 0 | E53: =B!$AL$988 -> 0
A54: 0903008 | B54: Programa de rehabilitación tipo 2 (mensual, grupo 5 a 7 pers.) | C54: =B!$C$989 -> 0 | D54: =B!$E$989 -> 0 | E54: =B!$AL$989 -> 0
B55: OTROS PROGRAMAS | C55: =C56 -> 0
A56: 0901003 | B56: Electroshocks e insulino-terapia (efectuada y controlada por el médico psiquiatra, incluye trat. de las complicaciones medicas, c/s miorrelajantes); cada sesión (max.6) | C56: =B!$C$960 -> 0
B57: EDUCACION DE GRUPO | C57: =SUM(C58:C61) -> 0 | D57: =SUM(D58:D61) -> 0 | E57: =SUM(E58:E61) -> 0
A58: 0103001 | B58: Educación de grupo por médico | C58: =B!$C$42 -> 0 | D58: =B!$E$42 -> 0 | E58: =B!$AL$42 -> 0
A59: 0103002 | B59: Educación de grupo por enfermera, matrona o nutricionista | C59: =B!$C$43 -> 0 | D59: =B!$E$43 -> 0 | E59: =B!$AL$43 -> 0
A60: 0103003 | B60: Educación de grupo por asistente social | C60: =B!$C$44 -> 0 | D60: =B!$E$44 -> 0 | E60: =B!$AL$44 -> 0
A61: 0103004 | B61: Educación de grupo por auxiliar de enfermería | C61: =B!$C$45 -> 0 | D61: =B!$E$45 -> 0 | E61: =B!$AL$45 -> 0
B62: OTRA EDUCADION DE GRUPO | C62: =C63 -> 0
B63: Educación de grupo por otro integrante del equipo de salud | C63: =B!$C$47 -> 0
B64: VISITAS DOMICILIARIAS | C64: =SUM(C65:C67) -> 0 | D64: =SUM(D65:D67) -> 0 | E64: =SUM(E65:E67) -> 0
A65: 0104001 | B65: Visita a domicilio por enfermera, matrona o nutricionista | C65: =B!$C$51 -> 0 | D65: =B!$E$51 -> 0 | E65: =B!$AL$51 -> 0
A66: 0104002 | B66: Visita a domicilio por asistente social | C66: =B!$C$52 -> 0 | D66: =B!$E$52 -> 0 | E66: =B!$AL$52 -> 0
A67: 0104003 | B67: Visita a domicilio por auxiliar de enfermería | C67: =B!$C$53 -> 0 | D67: =B!$E$53 -> 0 | E67: =B!$AL$53 -> 0
B68: OTRAS VISITAS DOMICILIARIAS | C68: =SUM(C69:C70) -> 0
B69: Visita a domicilio por otro integrante del equipo de salud | C69: =B!$C$55 -> 0
B70: Visita domiciaria por profesional y técnico paramédico | C70: =B!$C$56 -> 0
B71: TOTAL | C71: =C10+C32+C52+C57+C64+C24+C25+C47+C55+C62+C68 -> 78 | D71: =D10+D32+D52+D57+D64+D24 -> 26 | E71: =E10+E32+E52+E57+E64+E24 -> 231000
A72: SECCION B: EXÁMENES DE DIAGNÓSTICO
A73: TIPO DE EXAMEN | C73: TOTAL PRODUCCIÓN | D73: TOTAL BENEFICIARIOS MAI | E73: PAGO POR PRESTACIONES ($)
A74: TOTAL EXAMENES LABORATORIO | C74: =SUM(C75:C80,C84:C87) -> 168 | D74: =SUM(D75:D79,D80,D84:D86) -> 56 | E74: =SUM(E75:E79,E80,E84:E86) -> 144580
A75: I | B75: HEMATOLOGICOS | C75: =B!$C$209 -> 168 | D75: =B!$E$209 -> 56 | E75: =B!$AL$209 -> 144580
A76: II | B76: BIOQUIMICOS | C76: =B!$C$271 -> 0 | D76: =SUM(B!E211:E214,B!E215:E259,B!E260:E270) -> 0 | E76: =B!$AL$271 -> 0
A77: III | B77: HORMONALES | C77: =B!$C$310 -> 0 | D77: =B!$E$310 -> 0 | E77: =B!$AL$310 -> 0
A78: IV | B78: GENETICA | C78: =B!$C$317 -> 0 | D78: =B!$E$317 -> 0 | E78: =B!$AL$317 -> 0
A79: V | B79: INMUNOLOGICOS | C79: =B!$C$373 -> 0 | D79: =B!$E$373 -> 0 | E79: =B!$AL$373 -> 0
A80: VI | B80: MICROBIOLOGICOS | C80: =SUM(C81:C83) -> 0 | D80: =SUM(D81:D83) -> 0 | E80: =SUM(E81:E83) -> 0
B81: a) BACTERIAS Y HONGOS | C81: =B!$C$410 -> 0 | D81: =B!$E$410 -> 0 | E81: =B!$AL$410 -> 0
B82: b) PARASITOS | C82: =B!$C$431 -> 0 | D82: =SUM(B!E412:E428,B!E429:E430) -> 0 | E82: =B!$AL$431 -> 0
B83: c) VIRUS | C83: =B!$C$450 -> 0 | D83: =B!$E$450 -> 0 | E83: =B!$AL$450 -> 0
A84: VII | B84: PROCEDIMIENTO O DETERMINACION DIRECTA C/PACIENTE | C84: =B!$C$460 -> 0 | D84: =B!$E$460 -> 0 | E84: =B!$AL$460 -> 0
A85: VIII | B85: EX. DE DEPOSICIONES EXUDADOS. SECREC. Y OTROS LIQ. | C85: =B!$C$511 -> 0 | D85: =SUM(B!E474:E497,B!E498:E510) -> 0 | E85: =B!$AL$511 -> 0
A86: IX | B86: ORINA | C86: =B!$C$541 -> 0 | D86: =B!$E$541 -> 0 | E86: =B!$AL$541 -> 0
A87: X | B87: OTROS EXAMENES DE LABORATORIO | C87: =B!$C$2943 -> 0 | D87: =B!$E$2943 -> 0
A88: TOTAL EXAMENES IMAGENOLOGIA | C88: =+C89+C90+C91+C92+C96+C97 -> 0 | D88: =+D89+D90+D91+D92+D96 -> 0 | E88: =+E89+E90+E91+E92+E96 -> 0
A89: I. a) | B89: EX. RADIOLOGICOS SIMPLES | C89: =B!$C$599 -> 0 | D89: =SUM(B!E544:E545,B!E546,B!E547,B!E548:E558,B!E559:E565,B!E566:E574,B!E575,B!E576:E594,B!E595:E597) -> 0 | E89: =B!$AL$599 -> 0
A90: I. b) | B90: EX. RADIOLOGICOS COMPLEJOS | C90: =B!$C$622 -> 0 | D90: =B!$E$622 -> 0 | E90: =B!$AL$622 -> 0
A91: II. | B91: TOMOGRAFIA AXIAL COMP. | C91: =B!$C$649 -> 0 | D91: =B!$E$649 -> 0 | E91: =B!$AL$649 -> 0
A92: III | B92: ULTRASONOGRAFIA | C92: =SUM(C93:C95) -> 0 | D92: =SUM(D93:D95) -> 0 | E92: =SUM(E93:E95) -> 0
B93: Ecotomografias ( Sin Ecografía Obstetr. Y Abdominal ) | C93: =B!$C$671-B!C651-B!C652 -> 0 | D93: =B!$E$671-B!E651-B!E652 -> 0 | E93: =B!$AL$671-B!$AL$651-B!$AL$652 -> 0
B94: Ecografías Obstétricas | C94: =B!$C$651 -> 0 | D94: =B!$E$651 -> 0 | E94: =B!$AL$651 -> 0
B95: Ecotomografias abdominal | C95: =B!$C$652 -> 0 | D95: =B!$E$652 -> 0 | E95: =B!$AL$652 -> 0
A96: IV | B96: RESONANCIA MAGNÉTICA | C96: =B!$C$703 -> 0 | D96: =B!$E$703 -> 0 | E96: =B!$AL$703 -> 0
B97: OTROS EXÁMENES DE IMÁGENES | C97: =B!$C$762 -> 0 | D97: =B!$E$762 -> 0
B98: TOTAL EXAMENES ANATOMIA PATOLOGICA | C98: =B!$C$957 -> 0 | D98: =B!$E$957 -> 0 | E98: =B!$AL$957 -> 0
A99: SECCION C: PROCEDIMIENTOS DE MEDICINA NUCLEAR , GINECOLOGÍA Y OBSTETRICIA, Y ORTOPEDIA
A100: CÓDIGOS | B100: IDENTIFICACION DE PRESTACIONES | C100: TOTAL PRODUCCIÓN | D100: TOTAL BENEFICIARIOS MAI | E100: PAGO POR PRESTACIONES ($)
A101: 05 | B101: PROCEDIMIENTOS DE MEDICINA NUCLEAR | C101: =B!C769+B!C776+B!C780+B!C787+B!C796+B!C800+B!C804+B!C808+B!C819+B!C827+B!C832+B!C850+B!C868+B!C816 -> 0 | D101: =B!E769+B!E776+B!E780+B!E787+B!E796+B!E800+B!E804+B!E808+B!E819+B!E827+B!E832+B!E850+B!E868+B!E816 -> 0 | E101: =B!AL769+B!AL776+B!AL780+B!AL787+B!AL796+B!AL800+B!AL804+B!AL808+B!AL819+B!AL827+B!AL832+B!AL850+B!AL868+B!AL816 -> 0
A102: 2001 | B102: PROCEDIMIENTOS DE GINECOLOGIA Y OBSTETRICIA | C102: =B!C2227+B!C2270+B!C2271 -> 0 | D102: =B!E2218+B!E2270+B!E2271 -> 0 | E102: =B!AL2218+B!AL2270+B!AL2271 -> 0
A103: 2107 | B103: PROCEDIMIENTOS DE ORTOPEDIA | C103: =B!C2533 -> 0 | D103: =B!E2533 -> 0 | E103: =B!AL2533 -> 0
B104: SUB-TOTAL FACTURACION SECCION C | C104: =SUM(C101:C103) -> 0 | D104: =SUM(D101:D103) -> 0 | E104: =SUM(E101:E103) -> 0
A105: SECCION D: INTERVENCIONES QUIRÚRGICAS
A106: CODIGOS | B106: IDENTIFICACION DE PRESTACIONES | C106: TOTAL PRODUCCIÓN | D106: TOTAL BENEFICIARIOS MAI | E106: 1 | F106: 0.5 | G106: 0.75 | H106: PAGO POR PRESTACIONES ($)
A107: 1103 | B107: I NEUROCIRUGIA | C107: =B!$C$1129 -> 0 | D107: =B!$I$1129 -> 0 | H107: =B!$AL$1129 -> 0
A108: 1202 | B108: II CIRUGIA OFTALMOLOGICA | C108: =B!C1266 -> 0 | D108: =B!I1266 -> 0 | H108: =B!$AL$1266 -> 0
A109: 1302 | B109: III CIRUGIA OTORRINOLOGICA | C109: =B!C1408 -> 0 | D109: =B!I1405 -> 0 | E109: =B!I1405 -> 0 | F109: =B!L1405 -> 0 | H109: =B!$AL$1405 -> 0
A110: 1402 | B110: IV CIRUGIA DE CABEZA Y CUELLO | C110: =B!C1472 -> 0 | D110: =B!I1472 -> 0 | H110: =B!AL1472 -> 0
A111: 1502 | B111: V CIRUGIA PLASTICA Y REPARADORA | C111: =B!$C$1541 -> 0 | D111: =B!$I$1541 -> 0 | H111: =B!$AL$1541 -> 0
A112: 1602 | B112: VI DERMATOLOGIA Y TEGUMENTOS | C112: =B!$C$1586 -> 0 | D112: =B!$I$1586 -> 0 | H112: =B!$AL$1586 -> 0
A113: 1703 | B113: VII CIRUGIA CARDIOVASCULAR | C113: =B!$C$1804 -> 0 | D113: =B!$I$1791 -> 0 | H113: =B!$AL$1791 -> 0
A114: 1704 | B114: VIII CIRUGIA TORAXICA | C114: =B!$C$1874 -> 0 | D114: =B!$I$1870 -> 0 | H114: =B!$AL$1870 -> 0
A115: 1802 | B115: IX CIRUGIA ABDOMINAL | C115: =B!$C$2036 -> 0 | D115: =B!$I$2029 -> 0 | H115: =B!$AL$2029 -> 0
A116: 1803 | B116: X CIRUGIA PROCTOLOGICA | C116: =B!C2075 -> 0 | D116: =B!I2075 -> 0 | H116: =B!AL2075 -> 0
A117: 1902 | B117: XI CIRUGIA UROLOGICA Y SUPRARRENAL | C117: =B!$C$2198 -> 0 | D117: =B!I2198 -> 0 | H117: =B!AL2198 -> 0
A118: 2002 | B118: XII CIRUGIA DE LA MAMA | C118: =B!$C$2233 -> 0 | D118: =B!I2233 -> 0 | H118: =B!$AL$2233 -> 0
A119: 2003 | B119: XIII CIRUGIA GINECOLOGICA | C119: =B!$C$2268 -> 0 | D119: =B!$I$2268 -> 0 | H119: =B!$AL$2268 -> 0
A120: 2004 | B120: XIV CIRUGIA OBSTETRICA | C120: =SUM(C121:C123) -> 14 | D120: =SUM(D121:D123) -> 0 | H120: =SUM(H121:H123) -> 1133480
B121: Cesárea c/s salpingoligadura o salpingectomía | C121: =B!C2274 -> 6 | D121: =B!E2274 -> 0 | H121: =B!AL2274 -> 284020
B122: Cesárea con histerectomía | C122: =B!C2275 -> 4 | D122: =B!E2275 -> 0 | H122: =B!AL2275 -> 558080
B123: Cesárea | C123: =B!C2276 -> 4 | D123: =B!E2276 -> 0 | H123: =B!AL2276 -> 291380
A124: 2104 | B124: XV TRAUMATOLOGIA | C124: =B!$C$2509 -> 0 | D124: =B!$I$2509 -> 0 | H124: =B!$AL$2509 -> 0
A125: 2106 | B125: XVI RETIRO ELEMENTOS OSTEOSINTESIS | C125: =B!$C2521 -> 0 | D125: =B!$I2521 -> 0 | G125: =B!C2521 -> 0 | H125: =B!$AL2521 -> 0
B126: SUB-TOTAL FACTURACION SECCION D | C126: =SUM(C107:C119)+C124+C125 -> 0 | D126: =SUM(D107:D119)+D124+D125 -> 0 | H126: =SUM(H107:H119)+H124+H125 -> 0
A127: SECCION E: ATENCION CERRADA, DIAS DE HOSPITALIZACION
A128: CODIGOS | B128: IDENTIFICACION DE PRESTACIONES | C128: TOTAL PRODUCCIÓN | D128: TOTAL BENEFICIARIOS MAI | E128: PAGO POR PRESTACIONES ($)
B129: ATENCION CERRADA
A130: 0203001 | B130: Día cama hospitalización integral medicina, cirugía, pediatría, obstetricia-ginecología y especialidades (sala 3 camas o más) (Hosp. Alta Complejidad) | C130: =B!$C$114 -> 0 | D130: =B!$E$114 -> 0 | E130: =B!$AL$114 -> 0
A131: 0203102 | B131: Día cama hospitalización integral medicina, cirugía, pediatría, obstetricia-ginecología y especialidades (sala 3 camas o más) (Hosp. Mediana Complejidad) | C131: =B!$C$115 -> 0 | D131: =B!$E$115 -> 0 | E131: =B!$AL$115 -> 0
A132: 0203103 | B132: Día cama hospitalización integral medicina, cirugía, pediatría, obstetricia-ginecología y especialidades (sala 3 camas o más) (Hosp. Baja Complejidad) | C132: =B!$C$116 -> 0 | D132: =B!$E$116 -> 0 | E132: =B!$AL$116 -> 0
A133: 0203002 | B133: Día cama hospitalización integral adulto en Unidad de Cuidado Intensivo (U.C.I.) | C133: =B!$C$117 -> 0 | D133: =B!$E$117 -> 0 | E133: =B!$AL$117 -> 0
A134: 0203003 | B134: Día cama hospitalización integral pediátrica en Unidad de Cuidado Intensivo (U.C.I). | C134: =B!$C$118 -> 0 | D134: =B!$E$118 -> 0 | E134: =B!$AL$118 -> 0
A135: 0203004 | B135: Día cama hospitalización integral neonatal en Unidad de Cuidado Intensivo (U.C.I.) | C135: =B!$C$119 -> 0 | D135: =B!$E$119 -> 0 | E135: =B!$AL$119 -> 0
A136: 0203005 | B136: Día cama hospitalización integral adulto en Unidad de Tratamiento Intermedio (U.T.I) | C136: =B!$C$120 -> 0 | D136: =B!$E$120 -> 0 | E136: =B!$AL$120 -> 0
A137: 0203006 | B137: Día cama hospitalización integral pediátrica en Unidad de Tratamiento Intermedio (U.T.I) | C137: =B!$C$121 -> 0 | D137: =B!$E$121 -> 0 | E137: =B!$AL$121 -> 0
A138: 0203007 | B138: Día cama hospitalización integral neonatal en Unidad de Tratamiento Intermedio (U.T.I) | C138: =B!$C$122 -> 0 | D138: =B!$E$122 -> 0 | E138: =B!$AL$122 -> 0
A139: 0203008 | B139: Día cama hospitalización integral incubadora | C139: =B!$C$123 -> 0 | D139: =B!$E$123 -> 0 | E139: =B!$AL$123 -> 0
A140: 0203009 | B140: Día cama hospitalización integral psiquiatría crónicos | C140: =B!$C$124 -> 0 | D140: =B!$E$124 -> 0 | E140: =B!$AL$124 -> 0
A141: 0203109 | B141: Día cama hosp. integral psiquiatría corta estadía | C141: =B!$C$125 -> 0 | D141: =B!$E$125 -> 0 | E141: =B!$AL$125 -> 0
A142: 0203209 | B142: Día cama hosp. integral desintoxicación alcohol y drogas | C142: =B!$C$126 -> 0 | D142: =B!$E$126 -> 0 | E142: =B!$AL$126 -> 0
B143: SUB TOTAL ATENCION CERRADA | C143: =SUM(C130:C142) -> 0 | D143: =SUM(D130:D142) -> 0 | E143: =SUM(E130:E142) -> 0
B144: MISCELANEOS DIAS CAMA | C144: =SUM(C145:C154) -> 0 | D144: =SUM(D145:D154) -> 0 | E144: =SUM(E145:E154) -> 0
A145: 0203010 | B145: Día cama integral psiquiátrico diurno | C145: =B!$C$129 -> 0 | D145: =B!$E$129 -> 0 | E145: =B!$AL$129 -> 0
A146: 0203110 | B146: Día cama hospitalización integral psiquiatría mediana estadía | C146: =B!$C$130 -> 0 | D146: =B!$E$130 -> 0 | E146: =B!$AL$130 -> 0
A147: 0203011 | B147: Día cama integral de observación o día cama integral ambulatorio diurno | C147: =B!$C$131 -> 0 | D147: =B!$E$131 -> 0 | E147: =B!$AL$131 -> 0
A148: 0203111 | B148: Camilla de observación en servicio de urgencia | C148: =B!$C$132 -> 0 | D148: =B!$E$132 -> 0 | E148: =B!$AL$132 -> 0
A149: 0203012 | B149: Día cama integral geriatría o crónicos | C149: =B!$C$133 -> 0 | D149: =B!$E$133 -> 0 | E149: =B!$AL$133 -> 0
A150: 0203013 | B150: Día estada en cámara hiperbárica | C150: =B!$C$134 -> 0 | D150: =B!$E$134 -> 0 | E150: =B!$AL$134 -> 0
A151: 0203014 | B151: Día cama hogar embarazada rural (del Servicio de Salud) | C151: =B!$C$135 -> 0 | D151: =B!$E$135 -> 0 | E151: =B!$AL$135 -> 0
A152: 0203015 | B152: Día cuna de hospitalización integral | C152: =B!$C$136 -> 0 | D152: =B!$E$136 -> 0 | E152: =B!$AL$136 -> 0
A153: 0203016 | B153: Día cama hospitalización integral urgencia H.U.A.P. (Sólo Hospital Urgencia Asistencia Pública) | C153: =B!$C$137 -> 0 | D153: =B!$E$137 -> 0 | E153: =B!$AL$137 -> 0
A154: 0203017 | B154: Día cama hogar protegido paciente psiquiátrico compensado | C154: =B!$C$138 -> 0 | D154: =B!$E$138 -> 0 | E154: =B!$AL$138 -> 0
B155: OTRO DIA CAMA | C155: =SUM(C156:C160) -> 0
A156: 203211 | B156: Día Cama Residencia Protegida | C156: =B!$C$140 -> 0
A157: "0202101 | B157: Día Cama de Hospitalización Medicina y Especialidades (sala 3 camas o más de pensionado o medio pensionado). | C157: =B!C141 -> 0
A158: 0202105 | B158: Día Cama de Hospitalización Cirugía (sala 3 camas o más de pensionado o medio pensionado) | C158: =B!C142 -> 0
A159: 0202109 | B159: Día Cama de Hospitalización Pediatría (sala 3 camas o más de pensionado o medio pensionado) | C159: =B!C143 -> 0
A160: 0202113 | B160: Día Cama de Hospitalización Obstetricia y Ginecología (sala 3 camas o más de pensionado o medio pensionado) | C160: =B!C144 -> 0
B161: TOTAL DIAS CAMA DE HOSPITALIZACION | C161: =(C143+C144+C155) -> 0 | D161: =(D143+D144) -> 0 | E161: =(E143+E144) -> 0
A162: SECCION F: ACTIVIDADES PROTECCION ESPECIFICA
A163: CODIGOS | B163: IDENTIFICACION DE PRESTACIONES | C163: TOTAL PRODUCCIÓN | D163: TOTAL BENEFICIARIOS MAI | E163: PAGO POR PRESTACIONES ($)
A164: 0105001 | B164: Vacunaciones (sólo considera administración) | C164: =B!$C$60 -> 0 | D164: =B!$E$60 -> 0 | E164: =B!$AL$60 -> 0
A165: 0105002 y 003 | B165: Desparasitación sarna y pediculosis (cada persona) | C165: =SUM(B!$C$61+B!$C$62) -> 0 | D165: =SUM(B!$E$61+B!$E$62) -> 0 | E165: =SUM(B!$AL$61+B!$AL$62) -> 0
B166: SUB-TOTAL FACTURACION SECCION F | C166: =SUM(C164:C165) -> 0 | D166: =SUM(D164:D165) -> 0 | E166: =SUM(E164:E165) -> 0
A167: SECCION G: PROCEDIMIENTOS DIAGNOSTICOS Y TERAPEUTICOS
A168: CODIGOS | B168: IDENTIFICACION DE PRESTACIONES | C168: TOTAL PRODUCCIÓN | D168: TOTAL BENEFICIARIOS MAI | E168: PAGO POR PRESTACIONES ($)
A169: 1101004 | B169: E.E.G. de 16 o más canales (incluye el cód. 11-01-006) | C169: =B!$C$997 -> 0 | D169: =B!$E$997 -> 0 | E169: =B!$AL$997 -> 0
A170: 1101006 | B170: Electroencefalograma (E.E.G.) standard y/o activado...., de 8 canales | C170: =B!$C$998 -> 0 | D170: =B!$E$998 -> 0 | E170: =B!$AL$998 -> 0
A171: 1701001 | B171: E.C.G. de reposo (incluye mínimo 12 derivaciones y 4 complejos por derivación) | C171: =B!$C$1697 -> 0 | D171: =B!$E$1697 -> 0 | E171: =B!$AL$1697 -> 0
A172: 1701003 | B172: Ergometría (incluye E.C.G. antes, durante y después del ejercicio con monitoreo continuo y medición de la intensidad del esfuerzo) | C172: =B!$C$1698 -> 0 | D172: =B!$E$1698 -> 0 | E172: =B!$AL$1698 -> 0
A173: 1701006 | B173: E.C.G. continuo (test Holter o similares, por ej. variabilidad de la frecuencia cardíaca y/o alta resolución del ST y/o depolarización tardía); 20 a 24 horas de registro | C173: =B!$C$1699 -> 0 | D173: =B!$E$1699 -> 0 | E173: =B!$AL$1699 -> 0
A174: 1701007 | B174: Ecocardiograma Doppler, con registro (incluye cód.17.01.008) | C174: =B!$C$1700 -> 0 | D174: =B!$E$1700 -> 0 | E174: =B!$AL$1700 -> 0
A175: 1701045 | B175: Ecocardiograma Doppler color | C175: =B!$C$1701 -> 0 | D175: =B!$E$1701 -> 0 | E175: =B!$AL$1701 -> 0
A176: 1701008 | B176: Ecocardiograma bidimensional (incluye registro modo M, papel fotosensible y fotografía), en adultos o niños (proc. aut.) | C176: =B!$C$1702 -> 0 | D176: =B!$E$1702 -> 0 | E176: =B!$AL$1702 -> 0
A177: 1701010 | B177: Sondeo cardíaco derecho c/s termodilución, en adultos o niños | C177: =B!$C$1703 -> 0 | D177: =B!$E$1703 -> 0 | E177: =B!$AL$1703 -> 0
A178: 1701011 | B178: Sondeo cardíaco izquierdo y derecho, en adultos o niños | C178: =B!$C$1704 -> 0 | D178: =B!$E$1704 -> 0 | E178: =B!$AL$1704 -> 0
A179: 1701012 | B179: Sondeo cardíaco izquierdo, en adultos o niños | C179: =B!$C$1705 -> 0 | D179: =B!$E$1705 -> 0 | E179: =B!$AL$1705 -> 0
A180: 1701019 | B180: Cinecoronariografía derecha y/o izquierda (incluye sondeo cardíaco izq. y ventriculografía izq.) | C180: =B!$C$1706 -> 0 | D180: =B!$E$1706 -> 0 | E180: =B!$AL$1706 -> 0
A181: 1701020 | B181: Ventriculografía derecha, en adultos o niños (incl. proc. rad. y sondeo cardíaco derecho) | C181: =B!$C$1707 -> 0 | D181: =B!$E$1707 -> 0 | E181: =B!$AL$1707 -> 0
A182: 1701021 | B182: Ventriculografía izquierda, en adultos o niños (incl. proc. rad. y sondeo cardíaco izquierdo) | C182: =B!$C$1708 -> 0 | D182: =B!$E$1708 -> 0 | E182: =B!$AL$1708 -> 0
A183: 1701022 | B183: Aortografía, en adultos o niños (Incluye proc. rad.) | C183: =B!$C$1709 -> 0 | D183: =B!$E$1709 -> 0 | E183: =B!$AL$1709 -> 0
A184: 1701023 | B184: Arteriografía de extremidades, en adultos o niños (incluye proc. rad.) | C184: =B!$C$1710 -> 0 | D184: =B!$E$1710 -> 0 | E184: =B!$AL$1710 -> 0
A185: 1701024 | B185: Arteriografía selectiva o superselectiva (pulmonar, renal, tronco celíaco, etc) en adultos o niños (incl. proc. rad.) | C185: =B!$C$1711 -> 0 | D185: =B!$E$1711 -> 0 | E185: =B!$AL$1711 -> 0
A186: 1701131 | B186: Angioplastía Intraluminal coronaria uno o mult. vasos(incl. proc. rad; balón, rotablator, Stent o similar) | C186: =B!$C$1712 -> 0 | D186: =B!$E$1712 -> 0 | E186: =B!$AL$1712 -> 0
A187: 1701132 | B187: Angioplastía Intraluminal periférica (incluye proc. rad., balón, Stent o similar) | C187: =B!$C$1713 -> 0 | D187: =B!$E$1713 -> 0 | E187: =B!$AL$1713 -> 0
A188: 1701043 | B188: Angioplastía de coartación aórtica (incl. proc. rad.) (proc. completo) | C188: =B!$C$1714 -> 0 | D188: =B!$E$1714 -> 0 | E188: =B!$AL$1714 -> 0
A189: 1701144 | B189: Angioplastía de arteria pulmonar o vena cava en niños (incluye proc. rad., balón, Stent o similar) | C189: =B!$C$1715 -> 0 | D189: =B!$E$1715 -> 0 | E189: =B!$AL$1715 -> 0
A190: 1701033 | B190: Biopsia endomiocárdica (proc. completo) | C190: =B!$C$1716 -> 0 | D190: =B!$E$1716 -> 0 | E190: =B!$AL$1716 -> 0
A191: 1701038 | B191: Septostomía de Rashkind | C191: =B!$C$1717 -> 0 | D191: =B!$E$1717 -> 0 | E191: =B!$AL$1717 -> 0
A192: 1701035 | B192: Colocación de sonda marcapaso transitorio (proc. completo) | C192: =B!$C$1718 -> 0 | D192: =B!$E$1718 -> 0 | E192: =B!$AL$1718 -> 0
A193: 1701141 | B193: Valvuloplastía mitral o tricúspide (incl. proc. radiológico, incluye balón) | C193: =B!$C$1719 -> 0 | D193: =B!$E$1719 -> 0 | E193: =B!$AL$1719 -> 0
A194: 1701142 | B194: Valvuloplastía aórtica y pulmonar (incl. proc. radiológico, incluye balón) | C194: =B!$C$1720 -> 0 | D194: =B!$E$1720 -> 0 | E194: =B!$AL$1720 -> 0
A195: 1801001 | B195: Gastroduodenoscopía (incluye esofagoscopía) | C195: =B!$C$1941 -> 0 | D195: =B!$E$1941 -> 0 | E195: =B!$AL$1941 -> 0
A196: 1801003 | B196: Yeyuno-ileoscopía (incluye esofago-gastro-duodenoscopía) | C196: =B!$C$1942 -> 0 | D196: =B!$E$1942 -> 0 | E196: =B!$AL$1942 -> 0
A197: 1801006 | B197: Colonoscopía larga (incluye sigmoidoscopía y ....) | C197: =B!$C$1943 -> 0 | D197: =B!$E$1943 -> 0 | E197: =B!$AL$1943 -> 0
A198: 1401001 | B198: Punción evacuadora de quiste tiroídeo c/s toma de muestra, c/s inyección de medicamentos | C198: =B!$C$1410 -> 0 | D198: =B!$E$1410 -> 0 | E198: =B!$AL$1410 -> 0
A199: 1101113 | B199: Angiografía cerebral digital por cateterización femoral (incluye proc. Radiológico, medio de contraste e insumos) | C199: =B!$C$999 -> 0 | D199: =B!$E$999 -> 0 | E199: =B!$AL$999 -> 0
A200: 1101140 | B200: Esclerosis Múltiple Remitente Recurrente, Tratamiento médico farmacológico Anual (incluye inmunomoduladores) | C200: =B!$C$1000 -> 0 | D200: =B!$E$1000 -> 0 | E200: =B!$AL$1000 -> 0
... 337 more rows

Sheet Control
B2: HOJA | C2: SECCION | D2: Nº Errores
B3: NOMBRE | C3: Código comuna | D3: =+NOMBRE!AF2 -> 1
B4: NOMBRE | C4: Código establecimiento/estrategia | D4: =+NOMBRE!AF3 -> 1
B5: NOMBRE | C5: Tipo establecimiento/estrategia | D5: =+NOMBRE!AF4 -> 1
B6: NOMBRE | C6: Dependencia | D6: =+NOMBRE!AF5 -> 1
B7: NOMBRE | C7: Código Mes | D7: =+NOMBRE!AF6 -> 1
B8: B17 | C8: SECCIÓN E: INTERVENCIONES QUIRÚRGICAS POR TIPO DE INTERVENCIÓN | D8: =SUM('B17'!AB413:AB416) -> 0
B9: B17 | C9: SECCIÓN L: OTRAS ATENCIONES A PACIENTES AMBULATORIOS | D9: =SUM('B17'!AB474:AB476) -> 0
B10: B17 | C10: SECCIÓN N: OTROS TRASLADOS DE PACIENTES | D10: =SUM('B17'!AB479:AB481) -> 0
C11: TOTAL ERRORES | D11: =SUM(D3:D10) -> 5
B15: ¿Nombre vacío?
B16: =ISBLANK(NOMBRE!B2) -> TRUE
D82: =SUM(D3:D7) -> 5

Sheet MACROS
A1: Hoja de Macros y Utilidades
A2: =CONCATENATE("ESTABLECIMIENTO/ESTRATEGIA: ",NOMBRE!B3," - ","( ",NOMBRE!C3,NOMBRE!D3,NOMBRE!E3,NOMBRE!F3,NOMBRE!G3,NOMBRE!H3,NOMBRE!I3," )") -> ESTABLECIMIENTO/ESTRATEGIA: - ( Falta Cód. Est. )
B5: CREA UNA COPIA DEL ARCHIVO (TRANFORMA HOJAS A VALORES) A ESTE NUEVO ARCHIVO DEBERÁ ASIGNARLE UN NOMBRE
B6: Contraseña para copia del archivo :DEIS
B7: =IF(Control!D11>0,"REVISE LA HOJA CONTROL, EXISTEN ERRORES","") -> REVISE LA HOJA CONTROL, EXISTEN ERRORES
